Cogmind - Beta 13 @@@ ROGUE MODE // 2024.06.09 @ 14:55:35 Player: annull Result: Destroyed by S-10 Pest with Light Assault Rifle Performance ------------- Evolutions (1) 500 Regions Visited (3) 600 Robots Destroyed (4) 20 Value Destroyed (118) 118 Prototype IDs (0) 0 Alien Tech Used (0) 0 Bonus (0) 0 TOTAL SCORE: 1238 Bonus ------- None Cogmind --------- Core Integrity 0/400 Matter 300/300 Energy 100/100 System Corruption 0% Temperature Cool (6) Movement Core (50) Location -9/Materials Parts ------- > --- POWER (1) -------- (None) > --- PROPULSION (3) --- (None) > --- UTILITY (2) ------ (None) > --- WEAPON (3) ------- (None) > --- INVENTORY (5) ---- Small Matter Pod (2) Peak State ------------ > --- POWER ------------ Light Ion Engine > --- PROPULSION ------- Aluminum Leg Aluminum Leg > --- UTILITY ---------- Light Armor Plating > --- WEAPON ----------- Small Laser Assault Rifle > --- INVENTORY -------- Aluminum Leg Wheel Wheel Small Laser [Rating: 6] Favorites ----------- Power Light Ion Engine Engine Light Ion Engine Propulsion Wheel Leg Aluminum Leg Wheel Wheel Utility Light Armor Plating Protection Light Armor Plating Weapon Small Laser Energy Gun Small Laser Ballistic Gun Assault Rifle Special Melee Weapon Datajack Build | -11 -10 -10 -9 ------- Run | Yrd Mat Min Mat Slots Evolved 2 | . . . 2 Power . | . . . . Propulsion 1 | . . . 1 Utility . | . . . . Weapon 1 | . . . 1 Parts Attached 17 | 9 6 . 2 Power 1 | 1 . . . Engine 1 | 1 . . . Core . | . . . . Reactor . | . . . . Propulsion 9 | 6 2 . 1 Treads . | . . . . Leg 5 | 4 . . 1 Wheel 4 | 2 2 . . Hover . | . . . . Flight . | . . . . Utility 3 | . 3 . . Device . | . . . . Storage . | . . . . Processor . | . . . . Hackware . | . . . . Protection 3 | . 3 . . Artifact . | . . . . Weapon 4 | 2 1 . 1 Energy Gun 2 | 1 1 . . Energy Cannon . | . . . . Ballistic Gun 1 | 1 . . . Ballistic Cannon . | . . . . Launcher . | . . . . Special Weapon . | . . . . Impact Weapon . | . . . . Slashing Weapon . | . . . . Piercing Weapon . | . . . . Special Melee Weapon 1 | . . . 1 Unidentified Prototypes . | . . . . Parts Lost 11 | . 7 . 4 Power 1 | . 1 . . Propulsion 5 | . 2 . 3 Utility 1 | . 1 . . Weapon 4 | . 3 . 1 Highest Loss Streak 6 | . 6 . 4 To Critical Strikes . | . . . . Average Slot Usage (%) 42 | . 66 28 19 Engine 4 | . 11 . . Leg 11 | . 24 . 3 Wheel 13 | . 1 28 12 Protection 1 | . 3 . . Energy Gun 6 | . 15 . . Ballistic Gun 3 | . 8 . . Naked Turns 5 | . . . 5 Heaviest Build 9 | 6 9 . . Greatest Support 20 | 20 20 20 20 Greatest Overweight (x) . | . . . . Average Overweight (x) . | . . . . Largest Inventory Capacity 5 | 5 5 5 5 Average Capacity 5 | 5 5 5 5 Most Carried 5 | 5 5 1 2 Average Carried 2 | 2 3 1 1 Final Capacity 5 | 5 5 5 5 Final Carried 3 | 3 1 1 1 Class Distribution -------------------- 100% | Mutant Dominant Class ---------------- Mutant | -10/Materials Mutant | -10/Mines Mutant | -9/Materials Resources | -11 -10 -10 -9 ----------- Run | Yrd Mat Min Mat Matter Collected 358 | 299 59 . . Remotely . | . . . . Salvage Created 157 | 50 107 . . Parts 8 | 1 7 . . Haulers Intercepted . | . . . . Recyclers Shooed . | . . . . Parts Field Recycled . | . . . . Retrieved Matter . | . . . . Parts Self-Destructed . | . . . . Prevented . | . . . . Kills | -11 -10 -10 -9 ------- Run | Yrd Mat Min Mat Combat Hostiles Destroyed 3 | 1 2 . . Guns 3 | 1 2 . . Classes Destroyed 2 | 1 1 . . Watcher 1 | . 1 . . Grunt 3 | 1 2 . . Best Kill Streak 1 | 1 1 . . Combat Bots Only 1 | 1 1 . . Max Kills in Single Turn 1 | 1 1 . . Gunslinging . | . . . . Exploded . | . . . . Melee . | . . . . Uniques/NPCs Destroyed . | . . . . Combat | -11 -10 -10 -9 -------- Run | Yrd Mat Min Mat Hostile Shots Fired 170 | 5 94 . 71 Missed 47 | 1 31 . 15 Damage Taken 1323 | 46 712 . 565 Core 566 | 12 149 . 405 Absorbed by Shields . | . . . . Core Remaining (%) 65 | 95 . 35 . Volleys Fired 24 | 3 21 . . Largest 2 | 2 2 . . Hottest 80 | 60 80 . . Shots Fired 46 | 6 40 . . Gun 46 | 6 40 . . Cannon . | . . . . Launcher . | . . . . Special . | . . . . Kinetic 21 | 3 18 . . Thermal 25 | 3 22 . . Explosive . | . . . . Electromagnetic . | . . . . Robot Hit Streak 6 | 2 6 . . Robot Miss Streak 2 | 1 2 . . Penetration Max . | . . . . Secondary Targets . | . . . . Shots Hit Robots 30 | 4 23 . 3 Core Hits 10 | 2 5 . 3 Critical Kills . | . . . . Critical Parts Destroyed . | . . . . Critical Strikes . | . . . . Melee Attacks 3 | . . . 3 Impact . | . . . . Slashing . | . . . . Piercing . | . . . . Sneak Attacks . | . . . . Combat Hostiles . | . . . . Follow-up Attacks . | . . . . Damage Inflicted 363 | 49 308 . 6 Guns 357 | 49 308 . . Cannons . | . . . . Explosions . | . . . . Melee . | . . . . Ramming 6 | . . . 6 Kinetic 132 | 15 117 . . Thermal 225 | 34 191 . . Explosive . | . . . . Electromagnetic . | . . . . Impact . | . . . . Slashing . | . . . . Piercing . | . . . . Highest Corruption . | . . . . Average Corruption . | . . . . Corruption Purged . | . . . . Corruption Blocked . | . . . . Overload Shots . | . . . . Overflow Damage . | . . . . Projectiles . | . . . . Explosions . | . . . . Melee . | . . . . Knockbacks . | . . . . Impact . | . . . . Kinetic . | . . . . Secondary . | . . . . Self-Inflicted Damage 1 | . . . 1 Shots . | . . . . Rammed 4 | . 1 . 3 Targets Rammed 5 | . 1 . 4 Kicked 1 | . . . 1 Crushed . | . . . . Highest Temperature 60 | 6 60 . . Average Temperature 27 | 6 29 . . Received Heat Transfer 561 | 24 336 . 201 Siege Activations . | . . . . Robots Corrupted . | . . . . Combat Hostiles . | . . . . Parts Fried . | . . . . Impact Corruptions . | . . . . Robots Melted . | . . . . Combat Hostiles . | . . . . Parts Melted . | . . . . Heat Transferred 500 | 75 425 . . Parts Sabotaged . | . . . . Parts Stolen . | . . . . Parts Stripped . | . . . . Power Chain Reactions . | . . . . Alert | -11 -10 -10 -9 ------- Run | Yrd Mat Min Mat Peak Influence 105 | 20 105 18 43 Initial 13 | . 13 13 6 Average 32 | 3 65 17 15 Maximum Alert Level . | . . . . Low Security (%) 100 | 100 100 100 100 Level 1 . | . . . . Level 2 . | . . . . Level 3 . | . . . . Level 4 . | . . . . Level 5 . | . . . . High Security . | . . . . Max Security . | . . . . Squads Dispatched 1 | . . . 1 Investigation . | . . . . Extermination . | . . . . Reinforcement 1 | . . . 1 Assault . | . . . . Garrison . | . . . . Intercept . | . . . . Searches Triggered . | . . . . Construction Impeded . | . . . . Haulers Reinforced . | . . . . Active Scanning Responses . | . . . . Cargo Convoy Interrupts . | . . . . Stealth | -11 -10 -10 -9 --------- Run | Yrd Mat Min Mat Distress Signals 3 | . 2 . 1 Communications Jammed . | . . . . Distress Signals . | . . . . Times Spotted 25 | 1 13 . 11 Peak Tracking Total 9 | 1 8 . 9 Tactical Retreats 1 | . . . 1 Traps | -11 -10 -10 -9 ------- Run | Yrd Mat Min Mat Traps Triggered . | . . . . Indirectly . | . . . . Trap Hack Attempts . | . . . . Triggered . | . . . . Disarmed . | . . . . Reprogrammed . | . . . . Reused . | . . . . Traps Extracted . | . . . . Installed . | . . . . Triggered . | . . . . Machines | -11 -10 -10 -9 ---------- Run | Yrd Mat Min Mat Machines Disabled . | . . . . Max in Single Turn . | . . . . Machines Repaired . | . . . . Machines Dismantled . | . . . . Machines Sabotaged . | . . . . Overloaded Fab Kills . | . . . . Hacking | -11 -10 -10 -9 --------- Run | Yrd Mat Min Mat Machines Accessed 3 | . . 1 2 Terminals 3 | . . 1 2 Fabricators . | . . . . Repair Stations . | . . . . Recycling Units . | . . . . Scanalyzers . | . . . . Garrison Access . | . . . . Total Hacks 10 | . . 4 6 Successful 6 | . . 1 5 Failed 4 | . . 3 1 Catastrophic 1 | . . . 1 Database Lockouts . | . . . . Manual 1 | . . 1 . Terminals 10 | . . 4 6 Fabricators . | . . . . Repair Stations . | . . . . Recycling Units . | . . . . Scanalyzers . | . . . . Garrison Access . | . . . . Terminal Hacks 6 | . . 1 5 Record 1 | . . . 1 Emergency Access Points 1 | . . . 1 Alert Level 1 | . . . 1 Recall Reinforcements 1 | . . . 1 Hauler Manifests 1 | . . . 1 Zone Layout 1 | . . 1 . Fabricator Hacks . | . . . . Repair Station Hacks . | . . . . Recycling Unit Hacks . | . . . . Scanalyzer . | . . . . Garrison Access Hacks . | . . . . Unauthorized Hacks . | . . . . Terminals . | . . . . Fabricators . | . . . . Repair Stations . | . . . . Recycling Units . | . . . . Scanalyzers . | . . . . Garrison Access . | . . . . Data Cores Recovered . | . . . . Used . | . . . . Hacking Detections 2 | . . 1 1 Full Trace Events . | . . . . Feedback Events . | . . . . Feedback Blocked . | . . . . Robot Schematics Acquired . | . . . . Robots Built . | . . . . Authchips . | . . . . Time . | . . . . Total Robot Build Rating . | . . . . Part Schematics Acquired . | . . . . Parts Built . | . . . . Authchips . | . . . . Time . | . . . . Total Part Build Rating . | . . . . Parts Repaired . | . . . . Time . | . . . . Parts Recycled . | . . . . Recycled Matter . | . . . . Retrieved Matter . | . . . . Retrieved Components . | . . . . Parts Scanalyzed . | . . . . Part Schematics Acquired . | . . . . Parts Damaged . | . . . . Bothacking | -11 -10 -10 -9 ------------ Run | Yrd Mat Min Mat Used RIF Installer . | . . . . Robots Hacked 2 | . . . 2 Non-combat . | . . . . Combat 2 | . . . 2 Robot Hacks Applied 2 | . . . 2 parse_system 2 | . . . 2 Relay Couplers Released . | . . . . Fabnet Peak Effective % . | . . . . Robots Rewired . | . . . . Allies Hacked . | . . . . Hacks Repelled . | . . . . Allies | -11 -10 -10 -9 -------- Run | Yrd Mat Min Mat Total Allies . | . . . . Largest Group . | . . . . Highest-Rated Group . | . . . . Highest-Rated Ally . | . . . . Total Orders . | . . . . Ally Attacks . | . . . . Total Damage . | . . . . Kills . | . . . . Allies Corrupted . | . . . . Allies Melted . | . . . . Intel | -11 -10 -10 -9 ------- Run | Yrd Mat Min Mat Robot Analysis Total . | . . . . Derelict Logs Recovered . | . . . . Drone Launches . | . . . . Drone Recoveries . | . . . . Exploration | -11 -10 -10 -9 ------------- Run | Yrd Mat Min Mat Turns Passed 594 | 85 221 173 115 Spaces Moved 344 | 83 135 35 91 Core 76 | 34 25 . 17 Treads . | . . . . Legs 103 | 5 98 . . Wheels 165 | 44 12 35 74 Hover . | . . . . Flight . | . . . . Fastest Speed 50 | 50 50 80 50 Average Speed 85 | 70 103 80 74 Slowest Speed 120 | 120 120 80 80 Overloaded Moves . | . . . . Propulsion Burnouts . | . . . . Robots Hopped . | . . . . Cave-ins Triggered . | . . . . Exploration Rate (%) 13 | 8 26 8 12 Regions Visited 3 Branch Regions 1 Pre-discovered Areas . | . . . . Known Exits Taken . | . . . . Unknown Exits Taken 3 | 1 1 1 . Scrap Searched . | . . . . Spaces Dug . | . . . . Terrain Destroyed . | . . . . Melee . | . . . . Projectile . | . . . . AOE . | . . . . Terrain Rammed . | . . . . Walls Destroyed . | . . . . Machines Disabled . | . . . . Actions | -11 -10 -10 -9 --------- Run | Yrd Mat Min Mat Total 599 | 106 177 179 137 Wait 191 | . 11 145 35 Move 341 | 82 134 34 91 Hop . | . . . . Pick Up 12 | 8 2 . 2 Fast Attach . | . . . . Attach 17 | 9 6 . 2 Detach 6 | 4 2 . . Swap . | . . . . Drop . | . . . . Fire 24 | 3 21 . . Melee 3 | . . . 3 Ram 4 | . 1 . 3 Kick 1 | . . . 1 Crush . | . . . . Escape Stasis . | . . . . Rewire . | . . . . Trap . | . . . . Miscellaneous . | . . . . Route ------- -11/Scrapyard -10/Materials -10/Mines -9/Materials History --------- Turn | Location | Event 2 | -11/Scrapyard | Met Revision 17 59 | -11/Scrapyard | Discovered new exit (range 8) 86 | -11/Scrapyard | Entered Materials 288 | -10/Materials | Core integrity fell below 50% 299 | -10/Materials | Discovered new exit (range 12) 307 | -10/Materials | Entered Mines 307 | -10/Mines | Discovered new exit (range 9) 318 | -10/Mines | Build established: Mutant 328 | -10/Mines | Lost 6 parts (1p2n1u2w) 330 | -10/Mines | Met a Derelict bent on vengeance 467 | -10/Mines | Assembled infested the area 472 | -10/Mines | Assisted by a Guerilla fighting off Assembled 480 | -10/Mines | Entered Materials 480 | -9/Materials | Evolved 2 slots: Propulsion x1, Weapon x1 578 | -9/Materials | Core integrity fell below 50% 590 | -9/Materials | Core integrity fell below 20% 595 | -9/Materials | Destroyed by S-10 Pest with Light Assault Rifle Last Messages --------------- 00554_ K-01 Serf collects debris. Bump into an enemy to attack with the active melee weapon. Even while active, melee weapons do not fire together with ranged weapons in the same volley. 00556_ Jacked G-34 Mercenary... Right-click on available options for more info. Keyboard players can use Shift-a~z. >>parse_system Reading system data... 00558_ Jacked G-34 Mercenary... 00558_ K-01 Serf collects debris. 00559_ Jacked S-10 Pest... >>parse_system Reading system data... 00561_ K-01 Serf collects debris. 00567_ Aluminum Leg destroyed. 00568_ K-01 Serf cleans the Electrolysis Chamber. 00577_ K-01 Serf collects debris. 00590_ Datajack destroyed. [Achievement: First Step to Greatness] Map ----- +----------------------------------------------------+ | ???????????????????????? ????????????????????????? | | ???????????????????????? ????????????????????????? | | ???????????????????????? ##+?????????????????????? | | ???????????????????????# #????????????????????? | | ???????????????????????# #????????????????????? | | ???????????????????????# ?????????????????????? | | ???????????????????????# ?????????????????????? | | ???????????????????????#" ?????????????????????? | | ???????????????????????#%" ?????????????????????? | | ???????????????????????#" ??????????????????????? | | ???????????????????????? ??????????????????????? | | ???????????????????????? ??????????????????????? | | ????????????????????????# #??????????????????????? | | ?????????????????#??????# #??????????????????????? | | ?????????????????? ???### ###????????????????????? | | ??????????????????? ??# #????????????????????? | | ????????????????####+## #????????????????????? | | ???????????"" / T #????????????????????? | | ????????????????#### ## #????????????????????? | | ???????????????????# ?# k #????????????????????? | | ???????????????????#+####/#######????????????????? | | ???????????????????# g g #????????????????? | | ???????????????????# """ """ #????????????????? | | ???????????????????# """ """ #????????????????? | | ???????????????????# g """ """ #????????????????? | | ???????????????????# g@sw #????????????????? | | ???????????????????####+#########????????????????? | | ??????????????????????# #????????????????????????? | | ??????????????????????# #????????????????????????? | | ??????????????????????# #????????????????????????? | | ??????????????????#####+##???????????????????????? | | ??????????????????# #???????????????????????? | | ??????????????????# #???????????????????????? | | ??????????????????# """ #???????????????????????? | | ??????????????????# """ #???????????????????????? | | ??????????????????# """ #???????????????????????? | | ??????????????????# #?###+###???????????????? | | ??????????????????###+##/### #???????????????? | | ???????????????###### #???????????????? | | ???????????????+ ###?????????????? | | ???????????????###### ???????????? | | ????????????????????## ##### ###?????????????? | | ???????????????????###+###### ##???????????????? | | ???????????????????# # #????????????#+#?? | | ???????????????????+ " # ############## ### | | ???????????????????# T + | | ???????????????????# " # | | ???????????????????# # | | ???????????????????# """" # ####### | | ???????????????????# """" #####?????# | +----------------------------------------------------+ Best States ------------- Heat Dissipation 28 Energy Generation 10 Energy Capacity 125 Matter Stores 300 Matter Capacity 300 Sight Range 16 Terrain Scan Density 10 Armor Coverage 150 Evasion (%) 55 Item Schematics ----------------- None Robot Schematics ------------------ None Fabricated ------------ Nothing Alien Tech Used ----------------- None Achievements -------------- First Step to Greatness Shopping List Uninvited Guest Challenges ------------ None Game ------ Seed DecoderAlertWeb Manual? 0 Play Time 00:44:31 Cumulative 0.7 hours Start 2024.06.09 @ 13:08:24 End 2024.06.09 @ 14:55:35 Sessions 4 Manual Loads 0 Difficulty Rogue Special Mode None Game No. 1 Rogue 1 Adventurer 0 Explorer 0 Win Type - Total 0 Types 0/0/0/0/0/0/0/0/0 Lore% 0 Gallery% 1 Achievement% 1 Wizard Run 0 Options --------- Layout 0 ASCII 0 Keyboard 0 Movement Mouse Keybinds 0 Fullscreen 2 Font 18/TerminusBold Map View 76x50 Zoom Use 0% Tactical HUD 1 Map Filters NONE Filters NONE Steam 1 RUN: e12c8b07-6892-4585-ae73-2dba1e719fd3